[Event "GER-ch Youth U14 2020"]
[Site "Willingen"]
[Date "2020.10.20"]
[Round "1.21"]
[White "Stork, Christopher"]
[Black "Brunner, Alexander"]
[Result "1/2-1/2"]
[ECO "B92"]
[WhiteElo "1869"]
[BlackElo "1692"]
[Annotator "NA RC"]
[PlyCount "105"]
[EventDate "2020.10.20"]
[EventType "swiss"]
[EventRounds "7"]
[EventCountry "GER"]
[SourceTitle "playchess.com"]
[Source "ChessBase"]
[SourceQuality "1"]
[TimeControl "40/5400+30:1800+30"]

{[%evp 11,101,18,14,14,26,2,0,-1,-5,-6,-1,-19,39,14,61,23,33,30,34,15,77,77,56,61,58,64,70,32767,32767,32767,117,114,32767,32767,32767,133,143,34,37,31,32767,32767,32767,32,32767,0,0,0,0,32767,32767,32767,32767,32767,32767,32767,32767,32767,32767,32767,32767,100,32767,8,32767,32767,32767,32767,32767,32767,32767,32767,32767,87,32767,32767,32767,32767,8,32767,32767,0,32767,0,0,32767,32767,32767,32767,32767,32767,0]} 1. e4 {[%emt 0:00:00]} c5 {[%emt 0:00:00]} 2. Nf3 {[%emt 0:00:00]} d6 {[%emt 0:00:00]} 3. d4 {[%emt 0:00:01]} cxd4 {[%emt 0:00:16]} 4. Nxd4 {[%emt 0:00:08]} Nf6 {[%emt 0:00:16]} 5. Nc3 {[%emt 0:00:48]} a6 {[%emt 0:00:22]} 6. Be2 {[%emt 0:03:32]} e5 {[%emt 0:02:31]} 7. Nb3 {[%emt 0:00:48]} Be6 {[%emt 0:01:45]} 8. Bg5 {[%emt 0:06:43]} Be7 {[%emt 0:02:50]} 9. Bxf6 {[%emt 0:06:38]} Bxf6 {[%emt 0:03:30]} 10. Nd5 {[%emt 0:01:02]} Nd7 {[%emt 0:02:58] B92: Sicilian Najdorf: 6 Be2.} 11. Bg4 {[%emt 0:04:12] [#]} Bxd5 $146 {[%emt 0:07:42]} (11... O-O $11) ({Predecessor:} 11... Rc8 12. c3 O-O 13. O-O Bg5 14. h3 a5 15. a4 g6 16. Be2 f5 17. Bb5 Nf6 18. Nxf6+ Rxf6 {1-0 (30) Danin,A (2522)-Rakotomaharo,F (2429) Germany 2019}) 12. Qxd5 {[%emt 0:01:13]} Qc7 {[%emt 0:16:20]} 13. Rd1 {[%emt 0:06:10]} Be7 {[%emt 0:01:22]} 14. Bxd7+ {[%emt 0:12:03]} Qxd7 {[%emt 0:01:04]} 15. Nc5 {[%emt 0:06:31]} Qc6 {[%emt 0:05:17]} (15... Qc7 $11 16. Nd3 (16. Qxb7 Rc8 $11) (16. Nxb7 O-O $11) 16... a5) 16. Nxb7 Qxd5 {[%emt 0:01:33]} 17. Rxd5 {[%emt 0:06:39]} Rb8 {[%emt 0:00:17]} 18. Nxd6+ {[%emt 0:00:06]} Bxd6 {[%emt 0:00:10]} 19. Rxd6 {[%emt 0:00:05]} Rxb2 {[%emt 0:00:32]} 20. Rxa6 {[%emt 0:00:56]} Ke7 {[%emt 0:01:52]} ({Black should play} 20... Rb1+ $14 21. Ke2 Rxh1 22. Ra8+ Ke7 23. Rxh8 Rxh2) 21. Kd2 {[%emt 0:02:09]} Rc8 {[%emt 0:05:06]} 22. Rc1 {[%emt 0:00:18]} Rb4 {[%emt 0:00:56]} 23. Ra7+ {[%emt 0:07:44]} Ke6 {[%emt 0:00:40]} 24. Ra3 {[%emt 0:06:45]} (24. f3 $16) 24... Rxe4 {[%emt 0:00:32]} 25. f3 {[%emt 0:00:51]} Rh4 {[%emt 0:04:32]} 26. h3 {[%emt 0:00:33]} f5 {[%emt 0:00:16]} 27. Re1 {[%emt 0:02:17]} Rd4+ {[%emt 0:06:33]} 28. Rd3 {[%emt 0:01:48]} Rdc4 {[%emt 0:01:13]} 29. Rc1 {[%emt 0:00:38]} g5 {[%emt 0:05:21]} 30. Ra3 {[%emt 0:01:44]} h5 {[%emt 0:05:53]} 31. c3 {[%emt 0:00:53]} g4 {[%emt 0:01:10]} 32. hxg4 {[%emt 0:01:42]} hxg4 {[%emt 0:00:48]} 33. Rh1 {[%emt 0:00:52]} gxf3 {[%emt 0:04:48]} 34. Rh6+ {[%emt 0:01:13]} Kd5 {[%emt 0:01:13]} 35. gxf3 {[%emt 0:01:17]} R4c5 {[%emt 0:02:36] [#]} 36. Rf6 $1 {[%emt 0:02:01]} Rd8 {[%emt 0:01:45]} 37. Kc2 {[%emt 0:02:17]} (37. Raa6 $16) 37... f4 {[%emt 0:02:45]} 38. Raa6 {[%emt 0:02:14]} Rg8 {[%emt 0:02:08]} 39. Rfd6+ {[%emt 0:01:45]} Kc4 {[%emt 0:00:18]} 40. Ra4+ {[%emt 0:00:28]} Kb5 {[%emt 0:00:10]} 41. Rb4+ {[%emt 0:30:26]} Ka5 {[%emt 0:30:29]} 42. Rd7 $2 {[%emt 0:00:42]} (42. Kb3 $18 {has better winning chances.} Rb5 43. a4) 42... Rb5 {[%emt 0:01:07]} 43. Rxb5+ {[%emt 0:00:16]} Kxb5 {[%emt 0:00:02]} 44. Kd3 {[%emt 0:01:34]} Kc6 $1 {[%emt 0:02:50]} 45. Ra7 {[%emt 0:01:04]} Rg1 {[%emt 0:02:50]} 46. Ra4 {[%emt 0:02:21]} Rf1 {[%emt 0:00:00]} 47. Ke2 {[%emt 0:00:00]} Rc1 {[%emt 0:00:00]} 48. c4 {[%emt 0:00:00]} Rc3 {[%emt 0:00:00]} 49. Ra5 {[%emt 0:00:00]} Re3+ {[%emt 0:00:00]} 50. Kf2 {[%emt 0:00:00]} e4 {[%emt 0:00:00]} 51. fxe4 $11 {[%emt 0:00:00]} Rxe4 {[%emt 0:00:00]} 52. Kf3 {[%emt 0:00:00]} Rxc4 {[%emt 0:00:00]} 53. Rf5 {[%emt 0:00:00]} 1/2-1/2

[Event "GER-ch Youth U14 2020"]
[Site "Willingen"]
[Date "2020.10.20"]
[Round "1.22"]
[White "Englert, Luca"]
[Black "Tham, Nam"]
[Result "0-1"]
[ECO "C29"]
[WhiteElo "1530"]
[BlackElo "1890"]
[Annotator "NA RC"]
[PlyCount "76"]
[EventDate "2020.10.20"]
[EventType "swiss"]
[EventRounds "7"]
[EventCountry "GER"]
[SourceTitle "playchess.com"]
[Source "ChessBase"]
[SourceQuality "1"]
[TimeControl "40/5400+30:1800+30"]

{[%evp 16,74,-44,-62,-64,32767,12,0,48,45,30,28,32767,32767,102,120,109,151,128,158,114,81,72,0,0,0,117,106,90,103,90,96,103,98,96,106,108,115,112,89,73,0,32767,-6,0,32767,32,32767,33,0,32767,5,32767,32767,32767,32767,-29986,-29985,-29986,-29998,-29999]} 1. e4 {[%emt 0:00:00]} e5 {[%emt 0:00:00]} 2. Nc3 {[%emt 0:00:00]} Nf6 {[%emt 0:00:00]} 3. f4 {[%emt 0:00:00]} d5 {[%emt 0:00:14]} 4. fxe5 {[%emt 0:00:00]} Nxe4 {[%emt 0:00:08]} 5. Nf3 {[%emt 0:00:00]} Bc5 {[%emt 0:00:54]} 6. d4 {[%emt 0:00:00]} Bb4 {[%emt 0:00:04]} 7. Bd2 {[%emt 0:00:03]} c5 {[%emt 0:00:26]} 8. a3 {[%emt 0:01:09] C29: Vienna Game: 2...Nf6 3 f4.} Bxc3 {[%emt 0:06:05]} 9. bxc3 {[%emt 0:00:09]} Bg4 {[%emt 0:03:56]} 10. Be2 {[%emt 0:01:52] [#]} Bxf3 $146 {[%emt 0:02:24]} ({Black should try Predecessor:} 10... Nc6 $17 11. O-O O-O 12. Rb1 Qd7 13. Be1 b6 14. h3 Bh5 15. g4 Bg6 16. Nh4 Rae8 {0-1 (42) Morales Pecino,B (2304)-Belka,W (2449) ICCF email 2012}) 11. Bxf3 {[%emt 0:00:10]} cxd4 {[%emt 0:02:15]} 12. cxd4 {[%emt 0:00:28]} Nc6 {[%emt 0:01:41]} 13. c3 {[%emt 0:01:30]} O-O {[%emt 0:01:45]} 14. O-O {[%emt 0:00:35]} f6 {[%emt 0:03:30]} (14... f5 $14) 15. Bxe4 $1 {[%emt 0:01:21]} dxe4 {[%emt 0:00:13]} 16. Qb3+ {[%emt 0:00:06]} Kh8 {[%emt 0:00:59]} 17. exf6 {[%emt 0:02:01]} Rxf6 {[%emt 0:02:19]} 18. Rfe1 {[%emt 0:00:50]} ({White should play} 18. Rxf6 Qxf6 19. Rf1 (19. Qxb7 Rf8 $16)) 18... Na5 {[%emt 0:04:25]} 19. Qb4 {[%emt 0:01:41]} (19. Qc2 $16 Re6 20. Rxe4 Rxe4 21. Qxe4) 19... Qd5 {[%emt 0:02:30]} 20. Rf1 {[%emt 0:08:11]} Nb3 {[%emt 0:13:18]} (20... Re8 $11) 21. Rxf6 {[%emt 0:02:06]} gxf6 {[%emt 0:00:09] [#]} 22. Bh6 $3 {[%emt 0:04:15]} Qh5 {[%emt 0:08:46]} (22... Nxa1 $2 {loses.} 23. Qe7 $18) 23. Qxb7 {[%emt 0:01:43]} Rg8 {[%emt 0:01:06]} 24. Qxb3 {[%emt 0:00:45]} Qxh6 {[%emt 0:00:08]} 25. Qc2 {[%emt 0:04:42]} f5 {[%emt 0:04:18]} 26. Re1 {[%emt 0:01:00]} Qg5 {[%emt 0:03:11]} 27. g3 {[%emt 0:01:59]} h5 {[%emt 0:02:09]} 28. Kf1 {[%emt 0:04:14]} (28. Qc1 $14) 28... h4 {[%emt 0:03:54]} 29. Qg2 {[%emt 0:00:48]} Qg4 {[%emt 0:02:12]} 30. d5 {[%emt 0:02:02]} Rd8 {[%emt 0:04:34]} 31. c4 {[%emt 0:00:53]} e3 {[%emt 0:01:46]} 32. Qe2 {[%emt 0:02:15]} Qh3+ {[%emt 0:04:17]} 33. Kg1 {[%emt 0:03:47]} hxg3 {[%emt 0:00:56]} 34. hxg3 {[%emt 0:00:26]} Qxg3+ {[%emt 0:03:47]} 35. Kh1 {[%emt 0:00:05]} Rd7 {[%emt 0:01:10]} 36. Qb2+ {[%emt 0:01:00] [#]} Rg7 $1 {[%emt 0:00:53]} 37. Rb1 {[%emt 0:01:56]} Qf3+ {[%emt 0:00:13]} 38. Kh2 {[%emt 0:01:29]} Qh5# {[%emt 0:00:08]} 0-1

[Event "GER-ch Youth U14 2020"]
[Site "Willingen"]
[Date "2020.10.21"]
[Round "2.8"]
[White "Schwartz, Oliver"]
[Black "Halabi, Ibrahim"]
[Result "0-1"]
[ECO "B90"]
[WhiteElo "1794"]
[BlackElo "1895"]
[Annotator "NA RC"]
[PlyCount "80"]
[EventDate "2020.10.20"]
[EventType "swiss"]
[EventRounds "7"]
[EventCountry "GER"]
[SourceTitle "playchess.com"]
[Source "ChessBase"]
[SourceQuality "1"]
[TimeControl "40/5400+30:1800+30"]

1. e4 {[%emt 0:00:00]} c5 {[%emt 0:00:00]} 2. Nf3 {[%emt 0:00:00]} d6 {[%emt 0:00:00]} 3. d4 {[%emt 0:00:00]} cxd4 {[%emt 0:00:00]} 4. Nxd4 {[%emt 0:00:00]} Nf6 {[%emt 0:00:00]} 5. Nc3 {[%emt 0:00:02]} a6 {[%emt 0:00:00]} 6. f3 {[%emt 0:00:07]} e5 {[%emt 0:00:00]} 7. Nb3 {[%emt 0:00:07]} Be6 {[%emt 0:00:05]} 8. Be3 {[%emt 0:00:07]} Be7 {[%emt 0:00:06]} 9. Qd2 {[%emt 0:00:07]} O-O {[%emt 0:00:08]} 10. O-O-O {[%emt 0:00:09]} Nbd7 {[%emt 0:01:04]} 11. g4 {[%emt 0:00:12]} b5 {[%emt 0:00:06]} 12. g5 {[%emt 0:00:06]} b4 {[%emt 0:00:05]} 13. gxf6 {[%emt 0:00:06]} bxc3 {[%emt 0:00:11]} 14. Qxc3 {[%emt 0:00:05]} Nxf6 {[%emt 0:00:08]} 15. Na5 {[%emt 0:00:09]} Qd7 {[%emt 0:00:21]} 16. Qc6 {[%emt 0:01:22]} Rfc8 {[%emt 0:00:35]} ({Not} 16... Bxa2 $2 17. b3 $18) 17. Qxd7 {[%emt 0:00:35]} Nxd7 {[%emt 0:00:07]} 18. b3 {[%emt 0:03:07]} Rc3 {[%emt 0:01:42]} 19. Kd2 {[%emt 0:18:10]} Rcc8 {[%emt 0:08:27]} 20. c4 {[%emt 0:22:17] [#]} (20. Be2 $11 {keeps the balance.}) 20... Nc5 {[%emt 0:14:07]} (20... Rab8 $1 $17 21. Ke1 Bd8) 21. Kc2 {[%emt 0:06:00]} Bd8 {[%emt 0:04:06]} 22. Bd2 {[%emt 0:01:29]} f5 {[%emt 0:02:09]} 23. Bh3 {[%emt 0:12:27]} fxe4 {[%emt 0:02:00]} 24. Bxe6+ {[%emt 0:00:15]} Nxe6 {[%emt 0:00:08]} 25. fxe4 {[%emt 0:00:15]} Nd4+ {[%emt 0:08:14]} 26. Kb2 {[%emt 0:04:04]} Rab8 {[%emt 0:01:03]} 27. Rc1 $2 {[%emt 0:02:25]} (27. Ka3 $1 $11) 27... Rc5 {[%emt 0:04:08]} 28. Ka3 {[%emt 0:03:43]} Bxa5 {[%emt 0:03:37]} 29. b4 {[%emt 0:00:20]} Nc6 {[%emt 0:08:10]} (29... Bb6 $142 30. bxc5 Bxc5+ 31. Ka4 {[#]} Rb2 $1 {[%mdl 576] Double Attack}) 30. bxa5 {[%emt 0:07:20]} Nxa5 {[%emt 0:02:10]} 31. Bb4 {[%emt 0:01:25]} Nxc4+ {[%emt 0:00:16]} 32. Ka4 $2 {[%emt 0:02:02]} (32. Kb3 Nb2 33. a3) 32... Nb2+ {[%emt 0:02:18]} 33. Ka3 {[%emt 0:00:21]} Rxb4 {[%emt 0:00:53]} 34. Rb1 {[%emt 0:02:21]} Rxe4 {[%emt 0:02:15]} (34... Rb7 $142 35. Rxb2 Ra5#) 35. Rxb2 $19 {[%emt 0:00:56]} Ra5+ {[%emt 0:00:27]} 36. Kb3 {[%emt 0:00:17]} Rb5+ {[%emt 0:00:17]} 37. Ka3 {[%emt 0:00:16]} Re3+ {[%emt 0:00:40]} 38. Rb3 {[%emt 0:00:06]} Rexb3+ {[%emt 0:00:33]} 39. axb3 {[%emt 0:00:08]} e4 {[%emt 0:00:16]} 40. Rf1 {[%emt 0:00:48]} Re5 {[%emt 0:01:34]} 0-1

[Event "GER-ch Youth U14 2020"]
[Site "Willingen"]
[Date "2020.10.21"]
[Round "2.12"]
[White "Ermitsch, Magnus"]
[Black "Stork, Christopher"]
[Result "1/2-1/2"]
[ECO "B28"]
[WhiteElo "2049"]
[BlackElo "1869"]
[Annotator "RC"]
[PlyCount "90"]
[EventDate "2020.10.20"]
[EventType "swiss"]
[EventRounds "7"]
[EventCountry "GER"]
[SourceTitle "playchess.com"]
[Source "ChessBase"]
[SourceQuality "1"]
[TimeControl "40/5400+30:1800+30"]

1. e4 {[%emt 0:00:00]} c5 {[%emt 0:00:00]} 2. Nf3 {[%emt 0:00:31]} a6 {[%emt 0:00:00]} 3. c4 {[%emt 0:02:35]} Nc6 {[%emt 0:00:57]} 4. d4 {[%emt 0:02:22]} cxd4 {[%emt 0:00:14]} 5. Nxd4 {[%emt 0:00:42]} Nf6 {[%emt 0:00:50]} 6. Nc3 {[%emt 0:01:30]} e5 {[%emt 0:03:10]} 7. Nc2 {[%emt 0:02:17]} Be7 {[%emt 0:08:41]} 8. Be3 {[%emt 0:02:34]} O-O {[%emt 0:01:59]} 9. Be2 {[%emt 0:01:51]} d6 {[%emt 0:01:54]} 10. O-O {[%emt 0:01:01]} Be6 {[%emt 0:03:31]} 11. b3 {[%emt 0:02:20]} Rc8 {[%emt 0:02:43]} 12. f3 {[%emt 0:04:38]} Ne8 {[%emt 0:07:49]} 13. Qd2 {[%emt 0:10:11]} f5 {[%emt 0:08:17]} 14. exf5 {[%emt 0:03:15]} Bxf5 {[%emt 0:02:02]} 15. Nd5 {[%emt 0:03:53]} Nf6 {[%emt 0:02:34]} 16. Bd3 {[%emt 0:05:56]} Nxd5 {[%emt 0:06:02]} 17. Bxf5 {[%emt 0:02:01]} Rxf5 {[%emt 0:00:47]} 18. Qxd5+ {[%emt 0:00:51]} Kh8 {[%emt 0:02:12]} 19. Rad1 {[%emt 0:02:31]} Qg8 {[%emt 0:05:44]} 20. Qxg8+ {[%emt 0:10:47]} Kxg8 {[%emt 0:00:51]} 21. Bb6 {[%emt 0:02:57]} Rf6 {[%emt 0:03:26]} 22. Ne3 {[%emt 0:01:56]} Bf8 {[%emt 0:01:25]} 23. Nd5 {[%emt 0:01:02]} Rg6 {[%emt 0:01:09]} 24. f4 {[%emt 0:02:43]} exf4 {[%emt 0:05:09]} 25. Rxf4 {[%emt 0:00:56]} Be7 {[%emt 0:09:13]} 26. Rdf1 {[%emt 0:07:56]} Bg5 {[%emt 0:02:41]} 27. Re4 {[%emt 0:03:54]} Rf8 {[%emt 0:03:56]} 28. Bc7 {[%emt 0:05:10]} Rxf1+ {[%emt 0:01:42]} 29. Kxf1 {[%emt 0:00:02]} Kf7 {[%emt 0:00:20]} 30. h4 {[%emt 0:03:54]} Be7 {[%emt 0:03:15]} 31. Bb6 {[%emt 0:05:16]} Ne5 {[%emt 0:01:30]} 32. Bd4 {[%emt 0:00:53]} Bf6 {[%emt 0:02:41]} 33. c5 {[%emt 0:05:23]} Rg4 {[%emt 0:02:23]} 34. Nxf6 {[%emt 0:01:15]} gxf6 {[%emt 0:00:07]} 35. Rxg4 {[%emt 0:00:12]} Nxg4 {[%emt 0:00:06]} 36. cxd6 {[%emt 0:00:06]} Ke6 {[%emt 0:00:38]} 37. Bc5 {[%emt 0:00:38]} Ne5 {[%emt 0:02:45]} 38. Ke2 {[%emt 0:00:39]} Nf7 {[%emt 0:01:22]} 39. Kf3 {[%emt 0:00:47]} Ne5+ {[%emt 0:02:57]} 40. Ke4 {[%emt 0:02:02]} f5+ {[%emt 0:00:47]} 41. Ke3 {[%emt 0:06:16]} h5 {[%emt 0:04:35]} 42. b4 {[%emt 0:04:56]} Ng6 {[%emt 0:02:31]} 43. g3 {[%emt 0:01:04]} Kd7 {[%emt 0:01:55]} 44. a4 {[%emt 0:04:00]} b5 {[%emt 0:05:18]} 45. a5 {[%emt 0:02:33]} Ke6 {[%emt 0:00:48]} 1/2-1/2

[Event "GER-ch Youth U14 2020"]
[Site "Willingen"]
[Date "2020.10.21"]
[Round "2.16"]
[White "Spriestersbach, Kai"]
[Black "Niemann, Leon"]
[Result "1/2-1/2"]
[ECO "B33"]
[WhiteElo "1863"]
[BlackElo "1880"]
[Annotator "NA RC"]
[PlyCount "58"]
[EventDate "2020.10.20"]
[EventType "swiss"]
[EventRounds "7"]
[EventCountry "GER"]
[SourceTitle "playchess.com"]
[Source "ChessBase"]
[SourceQuality "1"]
[TimeControl "40/5400+30:1800+30"]

{[%evp 12,53,36,22,36,19,28,35,40,36,43,28,26,30,45,11,21,2,0,5,0,0,0,0,13,4,68,64,56,70,91,32767,101,83,100,58,91,98,111,79,32767,70,129,0]} 1. e4 {[%emt 0:00:00]} c5 {[%emt 0:00:00]} 2. Nf3 {[%emt 0:00:00]} Nc6 {[%emt 0:00:00]} 3. d4 {[%emt 0:00:00]} cxd4 {[%emt 0:00:00]} 4. Nxd4 {[%emt 0:00:00]} Nf6 {[%emt 0:00:00]} 5. Nc3 {[%emt 0:00:00]} e6 {[%emt 0:00:00]} 6. Ndb5 {[%emt 0:00:28]} Bb4 {[%emt 0:00:03]} 7. a3 {[%emt 0:00:44]} Bxc3+ $1 {[%emt 0:00:08]} 8. Nxc3 {[%emt 0:00:07]} d5 {[%emt 0:00:14]} 9. exd5 {[%emt 0:03:55]} exd5 {[%emt 0:00:07]} 10. Bd3 {[%emt 0:03:59]} O-O {[%emt 0:00:11]} 11. O-O {[%emt 0:00:11]} d4 {[%emt 0:00:06]} 12. Ne2 {[%emt 0:01:01]} Bg4 {[%emt 0:00:43]} 13. h3 {[%emt 0:03:14] B45: Sicilian Four Knights.} Bh5 {[%emt 0:04:05]} 14. Bf4 {[%emt 0:12:41]} Re8 {[%emt 0:14:22]} 15. Re1 {[%emt 0:02:09]} Qb6 {[%emt 0:10:29] [#]} 16. Rb1 $146 {[%emt 0:13:23]} ({Predecessor:} 16. b4 a5 17. b5 Ne5 18. Bxe5 Rxe5 19. Qd2 Rae8 20. Ng3 Rxe1+ 21. Rxe1 Bg6 22. Rxe8+ Nxe8 {1-0 (41) Corrales Jimenez,F (2496)-Iturrizaga Bonelli,E (2309) Havana 2006}) 16... Rad8 {[%emt 0:23:07]} 17. Qd2 {[%emt 0:27:09]} Bg6 {[%emt 0:17:01]} 18. Bg5 {[%emt 0:07:24]} Bxd3 {[%emt 0:04:10]} (18... Ne5 $11) 19. Bxf6 {[%emt 0:00:20]} gxf6 {[%emt 0:08:31]} 20. cxd3 {[%emt 0:00:27]} Kh8 {[%emt 0:01:08]} 21. Ng3 {[%emt 0:01:03]} Rg8 {[%emt 0:01:47]} 22. Re4 {[%emt 0:05:33]} Ne5 {[%emt 0:02:06]} 23. Kh2 {[%emt 0:01:42]} Rg6 {[%emt 0:06:03]} 24. Qe2 {[%emt 0:05:51]} Rdg8 {[%emt 0:01:00]} 25. Rg1 {[%emt 0:00:59]} Qd6 {[%emt 0:02:28]} 26. Kh1 {[%emt 0:01:12]} Qd7 {[%emt 0:01:01]} 27. Kh2 $11 {[%emt 0:02:31]} (27. Rh4 $16) 27... Qd6 {[%emt 0:00:42]} 28. Kh1 {[%emt 0:00:05]} Qd7 {[%emt 0:00:08]} 29. Kh2 {[%emt 0:00:06]} Qd6 {[%emt 0:00:04]} 1/2-1/2

[Event "GER-ch Youth U14 2020"]
[Site "Willingen"]
[Date "2020.10.21"]
[Round "2.17"]
[White "Huo, Da"]
[Black "Tovmasyan, Minas"]
[Result "1/2-1/2"]
[ECO "B41"]
[WhiteElo "1868"]
[BlackElo "1658"]
[Annotator "NA RC"]
[PlyCount "84"]
[EventDate "2020.10.20"]
[EventType "swiss"]
[EventRounds "7"]
[EventCountry "GER"]
[SourceTitle "playchess.com"]
[Source "ChessBase"]
[SourceQuality "1"]
[TimeControl "40/5400+30:1800+30"]

{[%evp 15,84,50,54,65,32767,63,70,61,73,66,60,69,79,52,91,11,42,32767,32767,35,32767,32767,32767,32767,32767,32767,79,0,67,0,61,37,33,52,38,56,58,32767,26,0,68,17,28,43,36,41,41,27,27,44,56,56,60,61,69,30,37,47,38,32767,32767,32767,38,36,59,2,0,8,0,0,6]} 1. e4 {[%emt 0:00:00]} c5 {[%emt 0:00:00]} 2. Nf3 {[%emt 0:00:00]} e6 {[%emt 0:00:08]} 3. d4 {[%emt 0:01:13]} cxd4 {[%emt 0:00:08]} 4. Nxd4 {[%emt 0:00:03]} a6 {[%emt 0:00:47]} 5. c4 {[%emt 0:00:24]} Qc7 {[%emt 0:00:47]} 6. Nc3 {[%emt 0:00:44]} Nf6 {[%emt 0:00:47]} 7. Be2 {[%emt 0:01:44]} d6 {[%emt 0:02:16]} 8. O-O {[%emt 0:00:42]} b6 {[%emt 0:02:31]} 9. Be3 {[%emt 0:00:33]} Bb7 {[%emt 0:01:39]} 10. f3 {[%emt 0:02:35]} Be7 {[%emt 0:02:28]} 11. Rc1 {[%emt 0:04:59]} Nbd7 {[%emt 0:01:58]} 12. Qe1 {[%emt 0:05:57]} O-O {[%emt 0:10:21]} 13. Qf2 {[%emt 0:03:18]} Rac8 {[%emt 0:07:51] A31: Symmetrical English: 2 Nf3 Nf6 3 d4.} 14. Rfd1 {[%emt 0:03:59]} Qb8 {[%emt 0:13:20]} 15. Nc2 {[%emt 0:05:27]} (15. g4 $16) 15... Bd8 {[%emt 0:10:49]} 16. Rd2 {[%emt 0:18:15]} Bc7 {[%emt 0:11:40]} 17. g3 {[%emt 0:11:45]} Rfd8 {[%emt 0:14:38]} 18. Rcd1 {[%emt 0:05:48] [#]} h6 $1 $146 {[%emt 0:05:01]} ({Predecessor:} 18... Bc6 19. Nb4 Qb7 20. Bf1 Ne5 21. a3 Be8 22. h3 b5 23. cxb5 Bxb5 24. Nxb5 axb5 {1-0 (44) Jamrich,G (2322)-Nemeth,D (2108) Zalakaros 2010}) 19. Nb4 {[%emt 0:03:02]} Nc5 20. Nd3 Bc6 {[%emt 0:03:55]} 21. Nb4 {[%emt 0:08:20]} Bb7 22. Nc2 {[%emt 0:03:34]} ({White should play} 22. Qg2 $14) 22... Bc6 {[%emt 0:02:41]} 23. b4 {[%emt 0:04:12]} (23. Nd4 $16 Bd7 24. g4) 23... Na4 {[%emt 0:00:53]} 24. Nd4 {[%emt 0:09:09]} Be8 {[%emt 0:01:29]} 25. Nxa4 {[%emt 0:01:43]} Bxa4 {[%emt 0:00:01]} 26. Rb1 {[%emt 0:00:14]} Bd7 {[%emt 0:02:38]} 27. b5 {[%emt 0:00:48]} a5 {[%emt 0:01:15]} ({Black should try} 27... axb5 $11 28. Nxb5 Bxb5 29. Rxb5 Nd7) 28. Nc6 {[%emt 0:00:16]} Bxc6 $1 {[%emt 0:00:15]} 29. bxc6 {[%emt 0:00:06]} Qa8 {[%emt 0:00:47]} 30. Bxb6 {[%emt 0:02:13]} Qxc6 {[%emt 0:00:10]} 31. Rb5 {[%emt 0:02:26]} a4 {[%emt 0:03:28]} 32. Bxc7 {[%emt 0:01:58]} Qxc7 {[%emt 0:00:01]} 33. Qb6 {[%emt 0:01:02]} Qxb6+ {[%emt 0:01:01]} 34. Rxb6 {[%emt 0:00:11]} d5 {[%emt 0:00:20]} 35. cxd5 {[%emt 0:00:37]} exd5 {[%emt 0:00:34]} 36. e5 {[%emt 0:00:15]} Nd7 {[%emt 0:00:29]} 37. Rd6 {[%emt 0:02:35]} Nxe5 {[%emt 0:00:17]} 38. R6xd5 {[%emt 0:00:10]} Rxd5 {[%emt 0:00:41]} 39. Rxd5 {[%emt 0:00:02]} Ng6 {[%emt 0:00:53]} 40. Ra5 {[%emt 0:00:14]} (40. Bd1 $14) 40... Rc2 {[%emt 0:00:29]} 41. Ra8+ {[%emt 0:32:59]} Nf8 {[%emt 0:09:18]} 42. Bb5 {[%emt 0:00:00]} Rxa2 $11 {[%emt 0:03:27]} 1/2-1/2

[Event "GER-ch Youth U14 2020"]
[Site "Willingen"]
[Date "2020.10.21"]
[Round "2.18"]
[White "Freude, Max"]
[Black "Ehrig, Leon Chris"]
[Result "1-0"]
[ECO "B13"]
[WhiteElo "1850"]
[BlackElo "1718"]
[Annotator "NA RC"]
[PlyCount "78"]
[EventDate "2020.10.20"]
[EventType "swiss"]
[EventRounds "7"]
[EventCountry "GER"]
[SourceTitle "playchess.com"]
[Source "ChessBase"]
[SourceQuality "1"]
[TimeControl "40/5400+30:1800+30"]

{[%evp 8,76,33,16,32767,21,19,0,3,12,4,-7,-7,-23,6,0,39,27,37,13,79,54,32767,35,54,44,128,111,134,118,126,109,135,32767,163,160,180,188,32767,0,32767,32767,32767,167,158,173,162,175,190,204,270,267,280,320,335,328,426,390,32767,32767,32767,32767,32767,594,1046,1095,1029,32767,1228,1264,29986]} 1. e4 {[%emt 0:00:00]} c6 {[%emt 0:00:00]} 2. d4 {[%emt 0:03:28]} d5 {[%emt 0:00:00]} 3. exd5 {[%emt 0:00:32]} cxd5 {[%emt 0:04:10]} 4. Bd3 {[%emt 0:00:19]} Nc6 {[%emt 0:00:23]} 5. c3 {[%emt 0:00:16]} Qc7 {[%emt 0:00:08]} 6. Ne2 {[%emt 0:11:32]} Bg4 {[%emt 0:01:40]} 7. f3 {[%emt 0:03:31] 7.f3 was played by the boomers.} Bd7 {[%emt 0:01:15]} 8. O-O {[%emt 0:08:46] B13: Caro-Kann: Exchange Variation and Panov-Botvinnik Attack.} e5 {[%emt 0:02:49]} 9. dxe5 {[%emt 0:07:51]} Nxe5 {[%emt 0:00:16] [#]} 10. f4 $146 {[%emt 0:02:41]} ({Predecessor:} 10. Kh1 Nf6 11. Bf4 Bd6 12. Na3 a6 13. Nc2 h6 14. Ne3 O-O-O 15. b4 Rhe8 16. Nd4 {0-1 (43) Divya,D (2305)-Shimanov,A (2593) chess.com INT 2020}) 10... Nc6 {[%emt 0:09:18]} 11. Be3 {[%emt 0:09:39]} Bd6 {[%emt 0:05:59]} 12. Nd4 {[%emt 0:04:25]} a6 {[%emt 0:07:46]} 13. Nd2 {[%emt 0:08:39]} Nge7 {[%emt 0:03:50]} (13... Nf6 $11 {remains equal.}) 14. N2b3 {[%emt 0:02:34]} O-O {[%emt 0:06:18]} 15. Qc2 {[%emt 0:05:42]} Ng6 {[%emt 0:06:13]} 16. Qf2 {[%emt 0:02:18]} f5 {[%emt 0:09:48]} (16... Nxd4 $11 17. Nxd4 Rfe8) 17. Rad1 {[%emt 0:02:45]} Rae8 {[%emt 0:03:47]} 18. g3 {[%emt 0:02:24]} Nge7 {[%emt 0:13:34]} 19. Nf3 {[%emt 0:01:50]} h6 {[%emt 0:05:38]} 20. Rfe1 {[%emt 0:00:46]} b5 {[%emt 0:03:35]} 21. Bf1 {[%emt 0:03:34]} Rb8 {[%emt 0:04:24]} 22. Nc5 {[%emt 0:02:55]} Bc8 {[%emt 0:01:12]} 23. Nb3 $2 {[%emt 0:02:18]} ({Better is} 23. b4 $18) 23... Na5 {[%emt 0:00:47]} 24. Nxa5 {[%emt 0:02:56]} Qxa5 {[%emt 0:00:18]} 25. Bc5 {[%emt 0:01:33]} Qc7 {[%emt 0:01:21]} 26. Bxd6 {[%emt 0:00:09]} Qxd6 {[%emt 0:00:05]} 27. Re5 {[%emt 0:01:21]} Bb7 {[%emt 0:02:11]} 28. Rde1 {[%emt 0:01:11]} Rbe8 {[%emt 0:01:50]} (28... Nc6 $142) 29. Re6 {[%emt 0:00:43]} Qc7 {[%emt 0:01:08]} 30. Qe3 {[%emt 0:03:23]} Rf7 {[%emt 0:02:02]} 31. Ne5 {[%emt 0:01:42]} Rf6 {[%emt 0:01:41] [#]} 32. Ng6 $1 {[%emt 0:01:29]} Rxg6 {[%emt 0:00:57]} 33. Rxg6 {[%emt 0:00:05]} Nxg6 {[%emt 0:00:18]} 34. Qxe8+ {[%emt 0:00:06]} Kh7 {[%emt 0:00:04]} 35. Bg2 {[%emt 0:01:47]} Qc4 {[%emt 0:01:12]} 36. Re6 {[%emt 0:01:21]} Qc5+ {[%emt 0:00:56]} 37. Kh1 {[%emt 0:00:45]} Nf8 {[%emt 0:00:43] [#]} 38. Re7 $18 {[%emt 0:00:42]} Bc6 {[%emt 0:00:35]} 39. Re6 Nxe6 1-0